Workbook

Sheet Beschreibung
A1: Beschreibung des Berechnung
A2: Version 2021-12-22
A4: Allgemeines
A5: Das Berechnungsblatt dient der vereinfachten Berechnung des Durchflusses von Hangwässern auf einer Parzelle im Rahmen des Widmungs- oder Bauverfahrens. Es soll Planer und Behörden bei der hydraulischen Dimensionierung der Durchleitungsanlagen unterstützen. Ziel ist die schadlose Durchleitung entlang einem zu definierenden Abflussweg von der Eintrittsstelle zur Austrittstelle einer Parzelle. Es wird darauf hingewiesen, dass an der Austrittstelle der Hangwässer für die betroffenen Nachbarn keine qualitatve und quantitative Verschlechterung erfolgen darf. Bei folgenden Anwendungsfällen kann das Berechnungsblatt verwendet werden: - Hangwasserabflüssen sind nicht größer als 1 m3/s - Parzellengröße: Einfamilienhaus - Der gesamte Hangwasserabfluss wird über die Parzelle und die Durchleitung geführt. Ein teilweiser Abfluss auf Nachbarparzellen kann nicht berücksichtigt werden. - Es besteht ein eindeutiger Zu- und Austrittsbereich der Hangwässer (Zusammenfluss oder Aufteilung des Abflusses auf mehrere Fließwege im Bereich der Parzelle treten nicht auf) - Die Parzelle befindet sich nicht im HQ30-Bereich eines Gewässers. Bauwerke im HQ30-Bereich von Gewässern sind wasserrechtlich Bewilligungspflichtig
A7: Berechnungsablauf
A8: 1. Ermittlung des Hangwasserabflusses (DORIS - Hangwasser) und Übernahme in die Berechnung 2. Festlegung des Fließweges auf der Parzelle und Übernahme der Geländeniveaus und Abschnittslängen in die Berechnungstabelle 3. Auswahl der Profiltypen und Tiefenlage in der Berechnungstabelle 4. Auswahl erforderlicher Energieumwandlungsbauwerke 5. Darstellung im Einreichplan
A10: 1. Ermittlung Hangwasserabfluss
A11: Die Hangwasserabflussmengen Q [m3/s] sind für ein 100-jährliches Ereignis zu ermitteln. Vereinfacht ist die Ermittlung auf Basis des 100-jährlichen 30-minütigen Niederschlags N100,30 [mm] und der Ermittlung des Einzugsgebietes AE [m2] mit der Formel Q= N100,30 *AE / 900 zulässig. Das Einzugsgebiet ist die Horizontalprojektion der Gesamtfläche, aus dem der Niederschlag der Parzelle zufließt. Das Einzugsgebiet kann aus topografischen Karten unter Nutzung der Höhenlinien unter Berücksichtigung von künstlichen Bauwerken (zB. Gartenmauern, Straßendämmen, ...) ermittelt werden. Die Grenzen des Einzugsgebietes werden durch die sogenannten Wasserscheiden definiert die senkrecht auf die Höhenlinien stehen. Der zu berücksichtigende Niederschlag kann auf https://ehyd.gv.at (Bundesministerium für Landwirtschaft, Regionen und Tourismus) für den am nächsten gelegenen Gitterpunkt abgefragt werden. Eine genauere Ermittlung ist zulässig und nachvollziehbar darzustellen.
A13: 2. Ermittlung des Fließweges
A14: Als Grundlage der Berechnung sind der Ein- und Austrittspunkt des Hangwasserabflusses der Parzelle zu ermitteln. Grundlage dafür können Begehung, Höhenschichtenplan, Naturstandsvermessung usw. sein. Beginnend vom Zutrittspunkt ist bis zum Austrittspunkt der gewünschte abschnittsweise Verlauf der Hangwasserdurchleitung zu ermitteln. Stützpunkte sind an vorgesehenen Knickpunkten in der Lage und im Längsprofil, sowie bei einem Profilwechsel einzufügen. Bei vorgesehenen Absturzbauwerken sind 2 Stützpunkte mit der Entfernung 0,00m vorzusehen. Vor allem bei Geländeverhältnissen mit größerem Gefälle können mehrere Absturzbauwerke erforderlich sein. Typen von Absturzbauwerken und konstruktive Vorschläge folgen im Kapitel 4 Energie-Umwandlungsbauwerke.
A16: Jeder Stützpunkt des Fließweges ist mit der Geländehöhe und dem Abstand zum nächsten Stützpunkt in die Berechnung zu übernehmen. Im schematischen Längsschnitt ist eine Plausibili-tätsprüfung möglich.
A18: 3. Auswahl der Profiltypen und Tiefenlage
A19: Folgende Profiltypen stehen zur Auswahl. Für jeden Profiltyp werden die angeführten Baustoffe, Böschungsneigungen B:H, Strickler-Werte, zulässige Sohlschubspannungen, Profilbreiten B und Mindesttiefen T berücksichtigt. Um die zulässige Sohlschubspannung einhalten zu können sind Abschätzungen des zulässigen Längsgefälles angegeben. Schematische Darstellungen sind auf dem Blatt Schemaprofile dargestellt. Die zulässige Sohlschubspannung auf Grasnarben wurde für ein kuzzeitiges Ereignis und bei vollstädig geschlossener, ebener und gut verwurzelter Grasfläche angegeben. Sollte die Grasnarbe beschädigt sein, so sind Erosionsschäden nicht auszuschließen.
A20: 2 Halbschale
C21: Baustoff: Beton Böschungsneigung: - Stricklerwert: 80 zulässige Sohlschubspannung: 600 N/m2 (Längsgefälle bis ca. 90 %) B = H = DN; T= 0,5* H
A22: 3 Hangmulde 10:1
C23: Baustoff: Rasen Böschungsneigung: 2:1, (Hang < 10:1 bzw. 10%) Stricklerwert: 20 zulässige Sohlschubspannung: 100 N/m2 (Längsgefälle bis ca. 10 %) B = 12 * H; T= H; 20cm Freibord
A24: 4 Hangmulde 20:1
C25: Baustoff: Rasen Böschungsneigung: 2:1, (Hang < 20:1 bzw. 5%) Stricklerwert: 20 zulässige Sohlschubspannung: 100 N/m2 (Längsgefälle bis ca. 13 %) B = 22 * H; T= H; 20cm Freibord
A26: 5 Hangmulde 5:1
C27: Baustoff: Rasen Böschungsneigung: 2:1, (Hang < 5:1 bzw. 20%) Stricklerwert: 20 zulässige Sohlschubspannung: 100 N/m2 (Längsgefälle bis ca. 8 %) B = 7 * H; T= H; 20cm Freibord
A28: 6 Kreisprofil
C29: Baustoff: Beton Böschungsneigung: - Stricklerwert: 80 zulässige Sohlschubspannung: 600 N/m2 (Längsgefälle bis ca. 125 %) B = H = DN; T= H + 0,20 m
A30: 7 Pflasterrinne trapezförmig 1:2
C31: Baustoff: Pflaster in Betonbett Böschungsneigung: 1:2 Stricklerwert: 40 zulässige Sohlschubspannung: 160 N/m2 (Längsgefälle bis ca. 14 %) B = 2 * H; T= H
A32: 8 Profil quadratisch
C33: Baustoff: Beton Böschungsneigung: senkrecht Stricklerwert: 80 zulässige Sohlschubspannung: 600 N/m2 (Längsgefälle bis ca. 110 %) B = H; T= H
A34: 9 Profil rechteckig
C35: Baustoff: Beton Böschungsneigung: senkrecht Stricklerwert: 80 zulässige Sohlschubspannung: 600 N/m2 (Längsgefälle bis ca. 240 %) B = H / 2; T= H
A36: 10 Profil trapezförmig 1:2
C37: Baustoff: Beton Böschungsneigung: 1:2 Stricklerwert: 80 zulässige Sohlschubspannung: 600 N/m2 (Längsgefälle bis ca. 90 %) B = 2 * H; T= H
A38: 11 Rasengraben 3:2
C39: Baustoff: Rasen Böschungsneigung: 3:2 Stricklerwert: 20 zulässige Sohlschubspannung: 100 N/m2 (Längsgefälle bis ca. 6 %) B = 4 * H; T= H
A40: 12 Rasengraben mit Halbschale
C41: Baustoff: Rasen mit Betonhalbschale Böschungsneigung: 3:2 Stricklerwert: 30 zulässige Sohlschubspannung: 150 N/m2 (Längsgefälle bis ca. 16 %) B = 4 * H; T= 1,5 * H
A42: 13 Rasenmulde 10:1
C43: Baustoff: Rasen Böschungsneigung: 10:1 Stricklerwert: 20 zulässige Sohlschubspannung: 100 N/m2 (Längsgefälle bis ca. 12 %) B = 20 * H; T= H
A44: 14 Rasenmulde 20:1
C45: Baustoff: Rasen Böschungsneigung: 20:1 Stricklerwert: 20 zulässige Sohlschubspannung: 100 N/m2 (Längsgefälle bis ca. 17 %) B = 40 * H; T= H
A46: 15 Rasenmulde 5:1
C47: Baustoff: Rasen Böschungsneigung: 5:1 Stricklerwert: 20 zulässige Sohlschubspannung: 100 N/m2 (Längsgefälle bis ca. 9 %) B = 10 * H; T= H
A48: 16 Rauhbettgerinne 1:2
C49: Baustoff: Flussbausteine im Mörtelbett, rau ausgeführt Böschungsneigung: 1:2 Stricklerwert: 20 zulässige Sohlschubspannung: 160 N/m2 (Längsgefälle bis ca. 11 %) B = 2 * H; T= H
A50: 17 Raubettmulde LMB 05/40
C51: Baustoff: raue Steinschlichtung mit Flussbausteine der Klasse LMB 05/40 Böschungsneigung: max 60° Stricklerwert: 20 zulässige Sohlschubspannung: 200 N/m2 (Längsgefälle bis ca. 13 %) B = 2 ,31* H; T= H
A52: 18 Raubettmulde LMB 10/60
C53: Baustoff: Steinschlichtung mit Flussbausteine der Klasse LMB 10/60 Böschungsneigung: max 60° Stricklerwert: 20 zulässige Sohlschubspannung: 250 N/m2 (Längsgefälle bis ca. 17 %) B = 2 ,31* H; T= H
A54: 19 Raubettmulde LMB 40/200
C55: Baustoff: Steinschlichtung mit Flussbausteine der Klasse LMB 40/200 Böschungsneigung: max 60° Stricklerwert: 15 zulässige Sohlschubspannung: 400 N/m2 (Längsgefälle bis ca. 26 %) B = 2 ,31* H; T= H
A57: Bei großem Längsgefälle sind entweder widerstandfähigere Profiltypen (höhere zulässige Sohlschubspannung) oder zusätzliche Abstürze einzubauen. Die Prüfung der zulässigen Sohlschubspannung für die Gerinneabschnitte erfolgt mit 2/3 HQ100 (ca. HQ10). Sollte die zulässige Schleppspannung nicht eingehalten werden können, so ist mit erhöhtem Betriebs-bzw. Sanierungsaufwand nach Ablaufereignissen zu rechnen. Der Betreiber ist auf dies hinzuweisen.
A58: Konstruktive Hinweise Eintrittspunkt: Die Übernahme des Hangwassers in das System kann durch ein Profil quer oder längs zur Tiefenlinie am Eintrittspunkt erfolgen. Die Tiefe am Eintrittspunkt entspricht dem Urgelände und damit 0,00m. Die Konstuktion muß gewährleisten, dass der gesamte Hangwasserabfluss in das Durchleitungssystem übernommen wird.
A60: Der Einlauf in einen verrohrten Abschnitt kann mit einem Güterwegeschacht mit Froschmauleinlauf oder mit einem Rohreinlauf erfolgen.
A62: Konstruktive Hinweise Austrittspunkt: Die Übergabe auf die unterhalb liegende Parzelle hat in jenem Bereich zu erfolgen, an dem der natürliche Abfluss erfolgen würde. Die Hangwässer sind auf diesen Bereich wiederum aufzuteilen. Die Übergabe des Hangwassers kann analog der Übernahme am Eintrittspunkt durch ein Profil quer oder längs zur Tiefenlinie am Austrittspunkt erfolgen. Ist eine Stützmauer als Begrenzung zur Nachbarparzelle vorgesehen wird vorgeschlagen, dass die Hangwässer mit einem Bauwerk auf mehrere Rohre aufgeteilt werden und diese im Niveau des Urgeländes ausgeleitet werden. Je Rohr mit einem Durchmesser DN150 können so etwa 25 l/s abgeleitet werden. Die erforderlichen Rohre sind auf jenen Bereich aufzuteilen, bei dem der ursprüngliche Ablauf erfolgte. Erfolgt in diesem Bauwerk ein Niveausprung, so ist das Bauwerk als Absturz (mit 2 Stützpunkten) in der Berechnung zu erfassen.
A64: Nach der Wahl der Profiltypen wird die erforderliche Profilhöhe H erf ermittelt und die vorgeschlagenen Profilabmessungen Höhe H und Breite B angegeben. Weiter wird am Stützpunkt die Mindestiefe (Abstand Gelände zu Gerinnesohle) angegeben. Die tatsächlich gewünschte Tiefe ist in der Spalte Tiefe einzutragen.
A66: 4. Energieumwandlungsbauwerke
A67: Am Übergang von 2 Streckenabschnitten besteht bei der Verringerung der zulässigen Schleppspannung des nachfolgenden Streckenabschnittes die Gefahr von Erosion. Daher wird geprüft, ob die Schleppspannung des jeweils oberhalb liegenden Abschnittes kleiner ist als die zulässige Schleppspannung des nachfolgenden Abschnittes. Ist die Schleppspannung am Übergabepunkt zu hoch wird in der Spalte EU (Energieumwandlung) "ja" angegeben. An diesen Stellen ist ein Energieumwandlungsbauwerk vorzusehen.
A68: Die Dimensionierung der Energieumwandlungsbauwerke erfolgt für 4 verschieden Bauformen mit den Arbeitsblättern: EU Becken … Energieumwandlung in einem Tosbecken EU Gerinne … Energieumwandlung in einem Raubettgerinne EU Schacht ... Energieumwandlung in einem Wirbelschacht EU Wirbeldrossel ... Energieumwandlung mit einer Wirbeldrossel Die benötigten Berechnungsgrundlagen für die Energieumwandlungsbauwerke sind aus dem Arbeitsblatt Durchleitung zu entnehmen. Die Energieumwandlungsbauwerke Wirbelschacht und Wirbeldrossel erfordern einen Absturz, der durch die Tiefe am Zulauf und der Tiefe am Ablauf angegeben wird. Das Ergebnis der Berechnung ist u.a. die minimal erforderliche Absturztiefe, die mit dem Berechnungsblatt kontrolliert wird. Bei zu geringer Absturztiefe sind die Tiefen im Berechnungsblatt Durchleitung anzupassen.
A69: Auswahl der Bauform der Energieumwandlungsbauwerke: Folgen der Energieumwandlung Mulden oder Gräben, so werden die Bauformen mit Raubettgerinne und Tosbecken vorgeschlagen. Beides sind Bauformen mit größerer Längserstreckung, wobei ein Tosbecken eine kürzere Längserstreckung aufweist wie ein Rauhbettgerinne. Ist eine kürzere Bauform erforderlich oder folgen der Energieumwandlung Rinnen oder Profile wird die Bauform Wirbelschacht vorgeschlagen. Bei sehr großem Gefälle im Zulauf zur Energieumwandlung und einem geschlossenen Zulaufprofil kann als Sonderform die Energieumwandlung mit Wirbeldrossel ausgeführt werden. Die Energieumwandlungsbauwerke Wirbelschacht oder Wirbeldrossel werden als Fertigteile am Markt angeboten. Die Dimensionierung der Energieumwandlung wird in der Regel vom Hersteller beigestellt.
A71: 5. Darstellung im Lageplan
A72: Lageplan oder Grundriss Erdgeschoß: -Hangwasser-Anlagen mit Profilbezeichnug, Bauwerksbezeichnung, Länge, Breite, Geländeniveau an den Stützpunkten sind im Lageplan M=1:500 oder größer einzutragen. -Höhenkoten im Bereich relevanter Stellen -Qualitative Darstellung des Zu- und Abströmbereiches und des Abflussweges bei Überlastung
A73: Schnitte: -Schnitt in Fallrichtung durch das Gebäude von Grundgrenze zu Grundgrenz mit Niveauangaben an relevanten Stellen -Schnitt quer zur Fallrichtung durch das Gebäude von Grundgrenze zu Grundgrenze -Schnitt in der Fließachse der Hangwasserdurchleitung mit Niveauangabe Urgelände, Neugelände und Wasserspiegelniveau -Das anstehende Gelände muß im Bereich von Gebäudeöffnungen von den Öffnungen weg fallen und um mehr als 20 cm unterhalb dem Eintrittsniveau sein. Weiter muss der Wasserspiegel der Hangwasserdurchleitung um mindestens 20cm unter den Gebäudeöffnungen liegen. Regelschnitte - Qerschnitte aller Hangwasser-Anlagen

Sheet Durchleitung
A1: Hangwasser-Durchleitung | F1: Einzugsgebiet | G1: AE | H1: 6841 | O1: Zeile hinzufügen | R1: Anwenderhinweise:
A2: Version 2021-12-22 | F2: Niederschlag | G2: N100,30 | H2: 47.7 | J2: Quelle: https://ehyd.gv.at | O2: Zeile entfernen
F3: Spitzenabfluss | G3: Q | H3: =+H1*H2/1800/1000 -> 0.1812865 | R3: =IF(Qerf>1,"Berechnung mit diesem Blatt nicht zulässig!","") -> 
A5: Pkt | B5: Gelände | C5: Tiefe | D5: Tmin | E5: Länge | F5: Profiltyp | G5: J | H5: kSt | I5: TWSP | J5: H | K5: B | L5: Q v | M5: v | N5: THQ10 | O5: SS | P5: S zul | Q5: EU | S5: Profilnr. | T5: Tmin | U5: f A | V5: f U | W5: f Bok | X5: kSt | Y5: Szul | Z5: Stat | AA5: RS | AB5: Gel | AC5: WSP
A6: 1 | B6: 0.7 | C6: 0 | D6: 0 | E6: 12 | F6: Rasenmulde 10:1 | G6: =IF(S6=1,"",(B6-C6-B7+C7)/E6) -> 0.08583333333 | H6: =IF(X6>0,+X6,"") -> 20 | I6: =IF(G6="","",Qerf^(3/8)*V6^(1/4)/U6^(5/8)/X6^(3/8)/G6^(3/16)) -> 0.1363760086 | J6: =IF(I6="","",LOOKUP(I6,Werte!$L$2:$L$13,Werte!$L$3:$L$14)) -> 0.15 | K6: =IF(H6="","",+J6*W6) -> 3 | L6: =IF(H6="","",U6*J6^2*X6*(U6*I6/V6)^(0.666666666666667)*G6^0.5) -> 0.2193168662 | M6: =IF(H6="","",+L6/U6/J6^2) -> 0.9747416276 | N6: =IF(G6="","",(2/3*Qerf)^(3/8)*V6^(1/4)/U6^(5/8)/X6^(3/8)/G6^(3/16)) -> 0.1171396045 | O6: =IF(H6="","",9810*(U6/V6*N6)*G6) -> 49.07248566 | P6: =IF(H6="","",Y6) -> 100 | R6: =IF(H6="","",IF(C6<D6,"Tiefe erhöhen!",IF(G6<0,"Gegengefälle!",IF(O6>P6,"zulässige Sohlschubspannung überschritten","")))) ->  | S6: =LOOKUP(F6,Werte!$B$2:$B$20,Werte!$A$2:$A$20) -> 13 | T6: =IF(J6="",0,LOOKUP(S6,Werte!$A$2:$A$20,Werte!$G$2:$G$20)*Durchleitung!J6+LOOKUP(S6,Werte!$A$2:$A$20,Werte!$H$2:$H$20)) -> 0.15 | U6: =LOOKUP(S6,Werte!$A$2:$A$20,Werte!$C$2:$C$20) -> 10 | V6: =LOOKUP(S6,Werte!$A$2:$A$20,Werte!$D$2:$D$20) -> 20.09975124 | W6: =LOOKUP(S6,Werte!$A$2:$A$20,Werte!$F$2:$F$20) -> 20 | X6: =LOOKUP(S6,Werte!$A$2:$A$20,Werte!$I$2:$I$20) -> 20 | Y6: =LOOKUP(S6,Werte!$A$2:$A$20,Werte!$J$2:$J$20) -> 100 | Z6: 0 | AA6: =+B6-C6 -> 0.7 | AB6: =+B6 -> 0.7 | AC6: =+AA6+MAX(I5,I6) -> 0.8363760086 | AD6: 0
A7: =IF(OR(A6="",B7=""),"",+A6+1) -> 2 | B7: -0.18 | C7: 0.15 | D7: =MAX(T6,T7) -> 0.15 | E7: 11 | F7: Rasenmulde 10:1 | G7: 0.09727272727 | H7: 20 | I7: 0.1332140836 | J7: =IF(I7="","",LOOKUP(I7,Werte!$L$2:$L$13,Werte!$L$3:$L$14)) -> 0.15 | K7: 3 | L7: 0.229851689 | M7: =IF(H7="","",+L7/U7/J7^2) -> 1.021563062 | O7: =IF(H7="","",9810*(U7/V7*I7)*G7) -> 63.24403333 | P7: 100 | Q7: =IF(H7="","",IF(O6="","",IF(O6>P7,"Ja","-"))) -> - | S7: =LOOKUP(F7,Werte!$B$2:$B$20,Werte!$A$2:$A$20) -> 13 | T7: =IF(J7="",0,LOOKUP(S7,Werte!$A$2:$A$20,Werte!$G$2:$G$20)*Durchleitung!J7+LOOKUP(S7,Werte!$A$2:$A$20,Werte!$H$2:$H$20)) -> 0.15 | U7: =LOOKUP(S7,Werte!$A$2:$A$20,Werte!$C$2:$C$20) -> 10 | V7: =LOOKUP(S7,Werte!$A$2:$A$20,Werte!$D$2:$D$20) -> 20.09975124 | W7: =LOOKUP(S7,Werte!$A$2:$A$20,Werte!$F$2:$F$20) -> 20 | X7: =LOOKUP(S7,Werte!$A$2:$A$20,Werte!$I$2:$I$20) -> 20 | Y7: =LOOKUP(S7,Werte!$A$2:$A$20,Werte!$J$2:$J$20) -> 100 | Z7: =+Z6+E6 -> 12 | AA7: -0.33 | AB7: -0.18 | AC7: =+AA7+MAX(I6,I7) -> -0.1936239914 | AD7: 0
A8: 3 | B8: -1.25 | C8: 0.15 | D8: 0.15 | E8: 16.5 | F8: Rasenmulde 10:1 | G8: =IF(S8=1,"",(B8-C8-B9+C9)/E8) -> 0.1212121212 | H8: 40 | I8: 0.1278302348 | J8: =IF(I8="","",LOOKUP(I8,Werte!$L$2:$L$13,Werte!$L$3:$L$14)) -> 0.15 | K8: 3 | L8: 0.249620822 | M8: 1.109425876 | N8: =IF(G8="","",(2/3*Qerf)^(3/8)*V8^(1/4)/U8^(5/8)/X8^(3/8)/G8^(3/16)) -> 0.1097992477 | O8: 75.62370714 | P8: 100 | Q8: =IF(H8="","",IF(O7="","-",IF(O7>P8,"Ja","-"))) -> - | S8: =LOOKUP(F8,Werte!$B$2:$B$20,Werte!$A$2:$A$20) -> 13 | T8: =IF(J8="",0,LOOKUP(S8,Werte!$A$2:$A$20,Werte!$G$2:$G$20)*Durchleitung!J8+LOOKUP(S8,Werte!$A$2:$A$20,Werte!$H$2:$H$20)) -> 0.15 | U8: =LOOKUP(S8,Werte!$A$2:$A$20,Werte!$C$2:$C$20) -> 10 | V8: =LOOKUP(S8,Werte!$A$2:$A$20,Werte!$D$2:$D$20) -> 20.09975124 | W8: =LOOKUP(S8,Werte!$A$2:$A$20,Werte!$F$2:$F$20) -> 20 | X8: =LOOKUP(S8,Werte!$A$2:$A$20,Werte!$I$2:$I$20) -> 20 | Y8: =LOOKUP(S8,Werte!$A$2:$A$20,Werte!$J$2:$J$20) -> 100 | Z8: 23 | AA8: =+B8-C8 -> -1.4 | AB8: =+B8 -> -1.25 | AC8: =+AA8+MAX(I7,I8) -> -1.266785916 | AD8: 0
A9: =IF(OR(A8="",B9=""),"",+A8+1) -> 4 | B9: -3.25 | C9: 0.15 | D9: =MAX(T8,T9) -> 0.15 | E9: 3.7 | F9: Rasenmulde 10:1 | G9: =IF(S9=1,"",(B9-C9-B10+C10)/E9) -> 0.1621621622 | H9: 40 | I9: =IF(G9="","",Qerf^(3/8)*V9^(1/4)/U9^(5/8)/X9^(3/8)/G9^(3/16)) -> 0.1210411205 | J9: =IF(I9="","",LOOKUP(I9,Werte!$L$2:$L$13,Werte!$L$3:$L$14)) -> 0.15 | K9: =IF(H9="","",+J9*W9) -> 3 | L9: =IF(H9="","",U9*J9^2*X9*(U9*I9/V9)^(0.666666666666667)*G9^0.5) -> 0.2784082574 | M9: =IF(H9="","",+L9/U9/J9^2) -> 1.237370033 | N9: 0.1039677662 | O9: =IF(H9="","",9810*(U9/V9*I9)*G9) -> 95.79895823 | P9: =IF(H9="","",Y9) -> 100 | Q9: - | R9: =IF(H9="","",IF(C9<D9,"Tiefe erhöhen!",IF(G9<0,"Gegengefälle!",IF(O9>P9,"zulässige Sohlschubspannung überschritten","")))) ->  | S9: =LOOKUP(F9,Werte!$B$2:$B$20,Werte!$A$2:$A$20) -> 13 | T9: =IF(J9="",0,LOOKUP(S9,Werte!$A$2:$A$20,Werte!$G$2:$G$20)*Durchleitung!J9+LOOKUP(S9,Werte!$A$2:$A$20,Werte!$H$2:$H$20)) -> 0.15 | U9: =LOOKUP(S9,Werte!$A$2:$A$20,Werte!$C$2:$C$20) -> 10 | V9: =LOOKUP(S9,Werte!$A$2:$A$20,Werte!$D$2:$D$20) -> 20.09975124 | W9: =LOOKUP(S9,Werte!$A$2:$A$20,Werte!$F$2:$F$20) -> 20 | X9: =LOOKUP(S9,Werte!$A$2:$A$20,Werte!$I$2:$I$20) -> 20 | Y9: =LOOKUP(S9,Werte!$A$2:$A$20,Werte!$J$2:$J$20) -> 100 | Z9: =+Z8+E8 -> 39.5 | AA9: =+B9-C9 -> -3.4 | AB9: =+B9 -> -3.25 | AC9: -3.272169765 | AD9: 0
A10: =IF(OR(A9="",B10=""),"",+A9+1) -> 5 | B10: -4 | C10: 0 | D10: 0 | F10: Ende | R10: =IF(C10<D10,"Tiefe erhöhen!","") ->  | Z10: =+Z9+E9 -> 43.2 | AA10: -4 | AB10: -4 | AC10: =+AA10+MAX(I9,I10) -> -3.87895888 | AD10: 0

Sheet Regelprofile
A1: Hangwasser-Durchleitung
A2: Version 2021-12-22
A3: Regelprofile der Durchleitungselemente
A5: 2 Halbschale
A7: 3, 4, 5 Hangmulde 1:10 (M=10), 1:20 (M=20), 1:5 (M=5)
A9: 6 Kreisprofil
A11: 7 Pflasterrinne trapezförmig 2:1
A13: 8 Profil quadratisch
A16: 9 Profil rechteckig
A18: 10 Profil trapezförmig 2:1
A20: 11 Rasengraben 2:3
A22: 12 Rasengraben mit Halbschale
A24: 13 Rasenmulde 1:10
A26: 14 Rasenmulde 1:20
A28: 15 Rasenmulde 1:5
A30: 16 Raubettgerinne 2:1
A32: 17, 18, 19 Raubettmulde LBM 05/40, LMB 10/60, LMB 40/200

Sheet EU Becken
A1: Hangwasser-Energieumwandlung | F1: Hinweise
A2: Version 2021-12-22
A3: mit Tosbecken
A5: Spitzenabfluss | B5: Q= | C5: =+Qerf -> 0.1812865
A7: Zulaufgerinne
A8: Zuströmgeschwindigkeit | B8: v1= | C8: 7.6
A9: Fließtiefe (Zuströmung) | B9: h1,erf= | C9: 0.205
A10: Energiehöhe | B10: I1= | C10: =+C9+C8^2/2/9.81 -> 3.14893476
A11: Froudezahl (stabiler Wechselsprung ab Fr >2,2) | B11: Fr1= | C11: =+C8/SQRT(9.81*C9) -> 5.359227065 | F11: =+IF(C11<2.2,"Tosbecken nicht geeignet","Tosbecken ist geeignet") -> Tosbecken ist geeignet
A13: Ablaufgerinne
A14: Gerinnebreite | B14: BU= | C14: 1.2
A15: Fließtiefe (Abströmung - Unterwasser) | B15: hU,erf= | C15: 0.277
A17: Tosbecken
A18: erforderliche Unterwassertiefe der Deckwalze | B18: h2= | C18: =C9/2*((1+8*C8^2/9.81/C9)^0.5-1) -> 1.454591119
A19: Tosbeckenlänge (nach Smetana) | C19: =3*C9*(SQRT(1+8*C11^2)-3) -> 7.497546715
A20: Tosbeckenlänge (nach Woycicki) | C20: =+C9*0.05*(81*SQRT(1+8*C11^2)-2*C11^2-241) -> 9.553401114
A21: Tosbeckenlänge | B21: L= | C21: =+ROUND((C19+C20)/2,1) -> 8.5
A22: Tosbeckenbreite | B22: B= | C22: =+C14 -> 1.2
A23: Prallwandhöhe | B23: H2= | C23: =+C18-(C5/0.7/C14/4.43)^0.666 -> 1.320932641
A24: Tosbeckentiefe | B24: T= | C24: =+C18+0.2 -> 1.654591119

Sheet EU Gerinne
A1: Hangwasser-Energieumwandlung
A2: Version 2021-12-22
A3: mit Rauhgerinne
A5: Spitzenabfluss | B5: Q= | C5: =+Qerf -> 0.1812865
A7: Zulaufgerinne
A8: Fließtiefe (Zuströmung) | B8: h1,erf= | C8: 0.205
A9: Zuströmgeschwindigkeit | B9: v1= | C9: 7.6
A10: Gerinnegefälle | B10: J1= | C10: 0.473
A12: Ablaufgerinne
A13: Fließtiefe (Abströmung - Unterwasser) | B13: h2,erf= | C13: 0.277
A14: Strömgeschwindigkeit (Abströmung) | B14: v2= | C14: 1.1
A15: Gerinnegefälle | B15: J2= | C15: 0.035
A17: Rauhgerinne
A18: Länge | B18: L= | C18: =+((C8+C9^2/2/9.81)-(C13+C14^2/2/9.81))/(C10-C15)*2 -> 12.83225113

Sheet EU Wirbelschacht
A1: Hangwasser-Energieumwandlung | F1: Hinweise
A2: Version 2021-12-22
A3: mit Energieumwandlungsschacht
G4: Rohr-DN | H4: Schacht-DN
A5: Spitzenabfluss | B5: Q= | C5: =+Qerf -> 0.1812865 | G5: 0 | H5: 0
G6: 0.1 | H6: 0.6
A7: Zulaufgerinne | G7: 0.15 | H7: 0.8
A8: Strömgeschwindigkeit (Zuströmung) | B8: v1= | C8: 7.6 | G8: 0.2 | H8: 1
A9: Fließtiefe (Zuströmung) | B9: h1,erf= | C9: 0.205 | G9: 0.25 | H9: 1.5
A10: Gerinnebreite | B10: B1= | C10: 0.3 | G10: 0.3 | H10: 2
A11: Gerinnegefälle | B11: J1= | C11: 0.473 | G11: 0.4 | H11: 2.5
G12: 0.5
A13: Ablaufgerinne | G13: 0.6
A14: Strömgeschwindigkeit (Abströmung) | B14: v2= | C14: 1.1 | G14: 0.8
A15: Fließtiefe (Abströmung - Unterwasser) | B15: h2,erf= | C15: 0.277 | G15: 1
G16: 2
A17: Energieumwandlungsschacht (Vordimensionierung)
A18: Durchmesser Schacht | B18: D= | C18: =LOOKUP(C19+2*C10,H5:H10,H6:H11) -> 1.5 | G18: D> DAB+2B1
A19: Durchmesser Ablauf | B19: DAB= | C19: =LOOKUP(1.25*(C5^2/9.81)^0.2,G5:G13,G6:G16) -> 0.4 | G19: DAB> 1,25 (Q2/g)0,2 lt DWA A 112 (Formel 19)
A20: max. Wassertiefe im Schacht | B20: H= | C20: =+C18/2*(C5/SQRT(0.5*9.81*C10*C9*(C18/2)^3)-C11/2)*(1.1+0.15*C5/(9.81*C10^2*C9^3)^0.5) -> 0.2876661819 | G20: H= D/2 *(Q/(0,5*g*B1*h1*(D/2)3)0,5-J1/2)*(1,1+0,15*Fr0); Fr0= Q/(g*B12*h13)0,5 … lt. DWA A112 (Formel 20, 21)
A21: min. Absturzhöhe | B21: A= | C21: =MAX(+C15+C14^2/2/9.81,C19*2) -> 0.8 | G21: max(v22/2g+h2 … Energiehöhe; 2DAB … lt DWA A112 (Kapitel 3.4.4))
A22: min. Zulauftiefe | B22: T1= | C22: =0.2+MAX(C9+C11*C18/2,C20) -> 0.75975 | G22: max(h1+J1*D/2+0,20; H+0,20)
A23: min. Ablauftiefe | B23: T2= | C23: =+C22+C21 -> 1.55975 | G23: T1+A
A24: engültige Dimensionierung nach Produktwahl und Herstellerangaben!
C28: =+C8^2/2/9.81*((C18-C10)^2-C19^2)/C19^2 -> 23.55147808
B29: v2/2g= | C29: =+C8^2/2/9.81 -> 2.94393476
C30: =SQRT(C19^2/((C18-C10)^2-C19^2)) -> 0.3535533906

Sheet EU Wirbeldrossel
A1: Hangwasser-Energieumwandlung | F1: Hinweise
A2: Version 2021-12-22
A3: mit Wirbeldrossel
H4: Bemessung lt. DWA A 111:
A5: Spitzenabfluss | B5: Q= | C5: =+Qerf -> 0.1812865 | H5: 4.1.3 Wirbelgeräte (z.B. Drosseln, Ventile) Ihre Bemessung erfolgt nach den vom Hersteller oder Anbieter zu machenden Angaben. Als Mindestdurchfluß ist Qmin = 25 l/s einzuhalten.
A7: Zulauf
A8: Strömgeschwindigkeit (Zuströmung) | B8: v1= | C8: 7.6 | H8: Abschätzung Drosselbemessung
A9: Fließtiefe (Zuströmung) | B9: h1,erf= | C9: 0.205
A10: Durchmesser | B10: D1= | C10: 0.3
A12: Ablauf
A13: Strömgeschwindigkeit (Abströmung) | B13: v2= | C13: 1.1
A14: Fließtiefe (Abströmung - Unterwasser) | B14: h2,erf= | C14: 0.277
A16: Energieumwandlungsschacht (Vordimensionierung)
A17: Differenz Energieniveau Zulauf-Ablauf | B17: DEH= | C17: =-C9+C8^2/2/9.81 -> 2.73893476
A18: Durchmesser Ablauf (Annahme: gleich Zulauf) | B18: D2= | C18: =+C10 -> 0.3
A19: Durchmesser Wirbeldrossel | B19: D= | C19: =ROUNDUP(SQRT((C10^2*C18*PI()/4/C5)^2*2*9.81*C17+C18^2)+C10+C18/2,1) -> 1.4
A20: min. Absturzhöhe | B20: A= | C20: =+C14+C13^2/2/9.81 -> 0.3386717635
A21: min. Zuluaftiefe | B21: T1= | C21: 2.2
A22: min. Ablauftiefe | B22: T2= | C22: =+C21+C20 -> 2.538671764
A23: engültige Dimensionierung nach Produktwahl und Herstellerangaben!

Sheet Werte (hidden)
A1: Typ | B1: Profile | C1: f A / H2 | D1: f U / H | E1: f Bso / H | F1: f Bok / H | G1: f Tmin H*a+b | I1: kSt | J1: S zul | L1: Höhen (Klassen)
A2: 1 | B2: Absturz | G2: 0 | L2: 0
A3: 2 | B3: Halbschale | C3: =+PI()/8 -> 0.3926990817 | D3: =+PI()/2 -> 1.570796327 | E3: 0 | F3: 1 | G3: 0.5 | H3: 0.2 | I3: 80 | J3: 600 | L3: 0.1
A4: 3 | B4: Hangmulde 10:1 | C4: 6 | D4: =+SQRT(1^2+2^2)+SQRT(1^2+10^2) -> 12.2859436 | E4: 0 | F4: 12 | G4: 1 | H4: 0.2 | I4: 20 | J4: 100 | L4: 0.15
A5: 4 | B5: Hangmulde 20:1 | C5: 11 | D5: =+SQRT(1^2+2^2)+SQRT(1^2+20^2) -> 22.26105237 | E5: 0 | F5: 22 | G5: 1 | H5: 0.2 | I5: 20 | J5: 100 | L5: 0.2
A6: 5 | B6: Hangmulde 5:1 | C6: 3.5 | D6: =+SQRT(1^2+2^2)+SQRT(1^2+5^2) -> 7.335087491 | E6: 0 | F6: 7 | G6: 1 | H6: 0.2 | I6: 20 | J6: 100 | L6: 0.25
A7: 6 | B7: Kreisprofil | C7: =+PI()/4 -> 0.7853981634 | D7: =+PI() -> 3.141592654 | E7: 0 | F7: 1 | G7: 1 | H7: 0.2 | I7: 80 | J7: 600 | L7: 0.3
A8: 7 | B8: Pflasterrinne trapezförmig 1:2 | C8: 1.5 | D8: =1+2*SQRT(1+0.5^2) -> 3.236067977 | E8: 1 | F8: 2 | G8: 1 | H8: 0.2 | I8: 40 | J8: 160 | L8: 0.35
A9: 8 | B9: Profil quadratisch | C9: 1 | D9: 3 | E9: 1 | F9: 1 | G9: 1 | H9: 0.2 | I9: 80 | J9: 600 | L9: 0.4
A10: 9 | B10: Profil rechteckig | C10: 0.5 | D10: 5 | E10: 0.5 | F10: 0.5 | G10: 1 | H10: 0.2 | I10: 80 | J10: 600 | L10: 0.5
A11: 10 | B11: Profil trapezförmig 1:2 | C11: 1.5 | D11: =1+2*SQRT(1+0.5^2) -> 3.236067977 | E11: 1 | F11: 2 | G11: 1 | H11: 0.2 | I11: 80 | J11: 600 | L11: 0.6
A12: 11 | B12: Rasengraben 3:2 | C12: 2.5 | D12: =1+2*SQRT(1+1.5^2) -> 4.605551275 | E12: 1 | F12: 4 | G12: 1 | H12: 0.2 | I12: 20 | J12: 100 | L12: 0.8
A13: 12 | B13: Rasengraben mit Halbschale | C13: =+PI()/8+2.5 -> 2.892699082 | D13: =+PI()+2*SQRT(3.25) -> 6.747143929 | E13: 1 | F13: 4 | G13: 1.5 | H13: 0.2 | I13: 30 | J13: 150 | L13: 1
A14: 13 | B14: Rasenmulde 10:1 | C14: 10 | D14: =0+2*SQRT(1+10^2) -> 20.09975124 | E14: 0 | F14: 20 | G14: 1 | H14: 0 | I14: 20 | J14: 100 | L14: 2
A15: 14 | B15: Rasenmulde 20:1 | C15: 20 | D15: =0+2*SQRT(1+20^2) -> 40.04996879 | E15: 0 | F15: 40 | G15: 1 | H15: 0 | I15: 20 | J15: 100
A16: 15 | B16: Rasenmulde 5:1 | C16: 5 | D16: =0+2*SQRT(1+5^2) -> 10.19803903 | E16: 0 | F16: 10 | G16: 1 | H16: 0 | I16: 20 | J16: 100
A17: 16 | B17: Raubettgerinne 1:2 | C17: 1.5 | D17: =1+2*SQRT(1+0.5^2) -> 3.236067977 | E17: 1 | F17: 2 | G17: 1 | H17: 0.2 | I17: 20 | J17: 160
A18: 17 | B18: Raubettmulde LMB05/40 | C18: 1.6245 | D18: 3.2491 | E18: 0 | F18: 2.3094 | G18: 1 | H18: 0.2 | I18: 20 | J18: 200
A19: 18 | B19: Raubettmulde LMB10/60 | C19: 1.6245 | D19: 3.2491 | E19: 0 | F19: 2.3094 | G19: 1 | H19: 0.2 | I19: 20 | J19: 250
A20: 19 | B20: Raubettmulde LMB40/200 | C20: 1.6245 | D20: 3.2491 | E20: 0 | F20: 2.3094 | G20: 1 | H20: 0.2 | I20: 15 | J20: 400

Sheet kSt (hidden)
A1: Rauheit für Abflussberechnung | H1: Verwendete Quelle
A2: nach Manning bzw. Strickler
A4: Gewichtete Mittelung von Strickler-Werten | B4: Ui | C4: KSti
A5: Gewässersohle | B5: 1.87 | C5: 22 | E5: =IF(C5>0,B5/C5^1.5,0) -> 0.01812206089
A6: Rohrwand | B6: =2.34*2 -> 4.68 | C6: 70 | E6: =IF(C6>0,B6/C6^1.5,0) -> 0.007990956988
E7: =IF(C7>0,B7/C7^1.5,0) -> 0
E8: =IF(C8>0,B8/C8^1.5,0) -> 0
A9: Uges=SUi | B9: =SUM(B5:B8) -> 6.55 | C9: m | E9: =SUM(E5:E8) -> 0.02611301788
A10: KSt,m= (Uges/(S(Ui/kSt,i3/2))2/3 | B10: =+(B9/E9)^(0.666666666666667) -> 39.77310432 | C10: m1/3/s
A12: Oberfläche | B12: n | D12: kSt
A13: Landoberflächenabfluss, Maniak 1988
A14: Asphalt | B14: 0.01 | C14: 0.13 | D14: =1/B14 -> 100 | E14: 7.692307692
A15: Brache | B15: 0.006 | C15: 0.016 | D15: 166.6666667 | E15: 62.5
A16: Gepflügt | B16: 0.05 | C16: 0.13 | D16: 20 | E16: 7.692307692
A17: Kurzes Gras | B17: 0.1 | C17: 0.2 | D17: 10 | E17: 5
A18: Rasen, dichter Wuchs | B18: 0.17 | C18: 0.48 | D18: 5.882352941 | E18: 2.083333333
A19: Landoberflächenabfluss, US Army Corps of Engineers, 1994
A20: Asphalt & concrete | B20: 0.05 | C20: 0.15 | D20: =1/B20 -> 20 | E20: =1/C20 -> 6.666666667
A21: Bare packed soil free of stone | B21: 0.1 | D21: =1/B21 -> 10
A22: Fallow - no residue | B22: 0.008 | C22: 0.012 | D22: 125 | E22: 83.33333333 | F22: Brachland
A23: Conventional tillage - no residue | B23: 0.06 | C23: 0.12 | D23: 16.66666667 | E23: 8.333333333 | F23: Konventioneller Ackerbau - keine Restflächen
A24: Conventional tillage - with residue | B24: 0.16 | C24: 0.22 | D24: 6.25 | E24: 4.545454545 | F24: Konventioneller Ackerbau - mit Restflächen
A25: Chisel plow - no residue | B25: 0.06 | C25: 0.12 | D25: 16.66666667 | E25: 8.333333333 | F25: Gepflügt
A26: Chisel plow - with residue | B26: 0.1 | C26: 0.16 | D26: 10 | E26: 6.25 | F26: Gepflügt
A27: Fall disking - with residue | B27: 0.3 | C27: 0.5 | D27: 3.333333333 | E27: 2 | F27: Herbst geeggt (Scheibeneggen)
A28: No till - no residue | B28: 0.04 | C28: 0.1 | D28: 25 | E28: 10
A29: No till (20 - 40 percent residue cover) | B29: 0.07 | C29: 0.17 | D29: 14.28571429 | E29: 5.882352941
A30: No Till (60 - 100 percent residue cover) | B30: 0.17 | C30: 0.47 | D30: 5.882352941 | E30: 2.127659574
A31: Sparse rangeland with debris:0 percent cover | B31: 0.09 | C31: 0.34 | D31: 11.11111111 | E31: 2.941176471
A32: Sparse rangeland with debris:20 percent cover | B32: 0.05 | C32: 0.25 | D32: 20 | E32: 4
A33: Sparse vegetation | B33: 0.053 | C33: 0.13 | D33: 18.86792453 | E33: 7.692307692 | F33: spärlicher Bewuchs
A34: Short grass prairie | B34: 0.1 | C34: 0.2 | D34: 10 | E34: 5
A35: Poor grass cover on moderately rough bare suface | B35: 0.3 | D35: 3.333333333
A36: Light turf | B36: 0.2 | D36: 5
A37: Average grass cover | B37: 0.4 | D37: 2.5
A38: Dense turf | B38: 0.17 | C38: 0.8 | D38: 5.882352941 | E38: =1/C38 -> 1.25
A39: Dense grass | B39: 0.17 | C39: 0.3 | D39: 5.882352941 | E39: =1/C39 -> 3.333333333 | F39: Dichtes Gras
A40: Bermuda grass | B40: 0.3 | C40: 0.48 | D40: 3.333333333 | E40: =1/C40 -> 2.083333333
A41: Dense shrubbery and forest litter | B41: 0.4 | D41: 2.5
A42: Landoberflächenabfluss, Urban Hydrologic Modeling Handbook, 2006
A43: Concrete, asphalt | B43: 0.01 | C43: 0.016 | D43: =1/B43 -> 100 | E43: 62.5
A44: Bare sand | B44: 0.01 | C44: 0.016 | D44: 100 | E44: 62.5
A45: Gravel | B45: 0.012 | C45: 0.03 | D45: 83.33333333 | E45: 33.33333333
A46: Bare clay-loam (eroded) | B46: 0.012 | C46: 0.033 | D46: 83.33333333 | E46: 30.3030303
A47: Natural rangeland | B47: 0.01 | C47: 0.32 | D47: 100 | E47: 3.125
A48: Bluegrass sod | B48: 0.39 | C48: 0.63 | D48: 2.564102564 | E48: 1.587301587
A49: Short-grass prairie | B49: 0.1 | C49: 0.2 | D49: 10 | E49: 5
A50: Dense grass, Bermuda grass, bluegrass | B50: 0.17 | C50: 0.48 | D50: 5.882352941 | E50: 2.083333333
A51: Forestland | B51: 0.2 | C51: 0.8 | D51: 5 | E51: 1.25
A52: Landoberflächenabfluss Kerby/Hathaway (aus Maniak 1988)
A53: glatte undurchlässige Flächen | B53: 0.02 | D53: =1/B53 -> 50
A54: glatten Boden (Brache) | B54: 0.1 | D54: 10
A55: Getreide | B55: 0.2 | D55: 5
A56: Weide | B56: 0.4 | D56: 2.5
A57: Laubwald | B57: 0.6 | D57: 1.666666667
A58: Wald mit tiefgründiger Spreuschicht | B58: 0.8 | D58: 1.25
A59: Vorlandabfluss von Gewässern, Ven-te Chow, 1959
A60: Wiese kurzes Gras | B60: =1/D60 -> 0.03333333333 | C60: =1/E60 -> 0.025 | D60: 30 | E60: 40
A61: Wiese hohes Gras | B61: =1/D61 -> 0.05 | C61: =1/E61 -> 0.0303030303 | D61: 20 | E61: 33
A62: Vorlandabfluss von Gewässern, DVWK, 1990
A63: mitteldichtes Gestrüpp | B63: =1/D63 -> 0.1666666667 | C63: =1/E63 -> 0.04545454545 | D63: 6 | E63: 22
A64: dichte Weiden | B64: =1/D64 -> 0.2 | C64: =1/E64 -> 0.1111111111 | D64: 5 | E64: 9
A65: Vorlandabfluss von Gewässern, Nestmann (1992) Vorlesungsmanuskript
A66: Wiese, kein Gestrüpp - kurzes Gras | B66: =1/D66 -> 0.03333333333 | C66: 0.025 | D66: 30 | E66: 40
A67: Wiese, kein Gestrüpp - hohes Gras | B67: 0.05 | C67: 0.0303030303 | D67: 20 | E67: 33
A68: verstreutes Gestrüpp, dichtes Unkraut | B68: 0.07142857143 | C68: 0.03448275862 | D68: 14 | E68: 29
A69: mittleres bis dichtes Gestrüpp, im Winter | B69: 0.1111111111 | C69: 0.04545454545 | D69: 9 | E69: 22
A70: mittleres bis dichtes Gestrüpp, im Sommer | B70: 0.1666666667 | C70: 0.07142857143 | D70: 6 | E70: 14
A71: dichter Baumbestand, wenig Unterholz, HW unter Zweigen | B71: 0.125 | C71: 0.07692307692 | D71: 8 | E71: 13
A72: dichter Baumbestand, wenig Unterholz, HW erreicht Zweige | B72: 0.1666666667 | C72: 0.1 | D72: 6 | E72: 10
A126: Patt,Jürging, Kraus, 1998, Naturnaher Wasserbau,
